Cogmind - Beta 16.1 @@@ ROGUE MODE // 2026.04.30 @ 03:11:52 Player: Lazz Result: Destroyed by DAS Turret with DAS Cannon Performance ------------- Evolutions (0) 0 Regions Visited (3) 600 Robots Destroyed (16) 80 Value Destroyed (172) 172 Prototype IDs (25) 500 Alien Tech Used (0) 0 Bonus (300) 300 TOTAL SCORE: 1652 Bonus ------- Aligned with FarCom 300 Cogmind --------- Core Integrity 0/250 Matter 300/300 Energy 99/100 System Corruption 0% Temperature Cool (0) Movement Core (100) Ox1 Location -10/Exiles Parts ------- > --- POWER (1) -------- (None) > --- PROPULSION (2) --- (None) > --- UTILITY (2) ------ Small Storage Unit > --- WEAPON (2) ------- (None) > --- INVENTORY (8) ---- Aluminum Leg Lightpack 2.0 Improved Terrain Scanner Terrain Scan Processor Terrain Scan Processor Thief Drone Bay (3/3) Peak State ------------ > --- POWER ------------ (None) > --- PROPULSION ------- Aluminum Leg Carbon-fiber Leg > --- UTILITY ---------- Small Storage Unit Trap Reconfigurator > --- WEAPON ----------- Assault Rifle Assault Rifle > --- INVENTORY -------- Lightpack 2.0 Improved Terrain Scanner Terrain Scan Processor Terrain Scan Processor Thief Drone Bay [Rating: 20] Favorites ----------- Power Light Ion Engine Engine Light Ion Engine Propulsion Aluminum Leg Leg Aluminum Leg Hover Unit Makeshift Hover Unit Utility Small Storage Unit Device Thief Drone Bay Storage Small Storage Unit Weapon Assault Rifle Ballistic Gun Assault Rifle Build | -11 -10 -10 -10 ------- Run | Yrd Mat Min Exi Slots Evolved . | . . . . Power . | . . . . Propulsion . | . . . . Utility . | . . . . Weapon . | . . . . Parts Attached 17 | 7 1 5 4 Power 1 | 1 . . . Engine 1 | 1 . . . Core . | . . . . Reactor . | . . . . Propulsion 7 | 2 . 3 2 Treads . | . . . . Leg 5 | 2 . 3 . Wheel . | . . . . Hover 2 | . . . 2 Flight . | . . . . Utility 6 | 2 1 1 2 Device 5 | 1 1 1 2 Storage 1 | 1 . . . Processor . | . . . . Hackware . | . . . . Protection . | . . . . Artifact . | . . . . Weapon 3 | 2 . 1 . Energy Gun . | . . . . Energy Cannon . | . . . . Ballistic Gun 3 | 2 . 1 . Ballistic Cannon . | . . . . Launcher . | . . . . Special Weapon . | . . . . Impact Weapon . | . . . . Slashing Weapon . | . . . . Piercing Weapon . | . . . . Special Melee Weapon . | . . . . Unidentified Prototypes 2 | . . 1 1 Parts Lost 7 | . . 2 5 Power 1 | . . 1 . Propulsion 3 | . . . 3 Utility . | . . . . Weapon 3 | . . 1 2 Highest Loss Streak 2 | . . 2 2 To Critical Strikes 3 | . . . 3 Average Backups 6 | 1 6 7 6 Power . | . . . . Propulsion . | . . . . Utility 4 | . 3 5 4 Weapon 1 | . 2 2 1 Tool/Special . | . . . . Unused Backups 7 | . . . 7 Power . | . . . . Propulsion . | . . . . Utility 5 | . . . 5 Weapon 2 | . . . 2 Tool/Special . | . . . . Average Slot Usage (%) 85 | . 100 94 78 Engine 4 | . 14 9 . Leg 24 | . 28 28 22 Hover 1 | . . . 2 Device 11 | . 14 14 10 Storage 14 | . 14 14 14 Ballistic Gun 27 | . 28 27 27 Peak Build Rating 20 | 7 8 16 20 Average Rating 12 | 5 7 12 14 On Entrance 7 | . 7 8 15 Avg Prop Armor Cover (%) . | . . . . Naked Turns . | . . . . Heaviest Build 16 | 13 13 16 13 Greatest Support 25 | 20 20 25 25 Greatest Overweight (x) 1 | 1 . . 1 Average Overweight (x) . | . . . . Largest Inventory Capacity 8 | 8 8 8 8 Average Capacity 7 | 7 8 8 8 Most Carried 8 | 4 8 8 8 Average Carried 6 | 1 6 7 7 Final Capacity 8 | 8 8 8 8 Final Carried 8 | 4 8 8 8 Class Distribution -------------------- 100% | Mutant Dominant Class ---------------- Mutant | -10/Materials Mutant | -10/Mines Mutant | -10/Exiles Resources | -11 -10 -10 -10 ----------- Run | Yrd Mat Min Exi Matter Collected 612 | 354 34 172 52 Remotely . | . . . . Salvage Created 403 | 180 85 128 10 Parts 43 | 14 17 12 . Haulers Intercepted . | . . . . Recyclers Shooed . | . . . . Parts Field Recycled . | . . . . Retrieved Matter . | . . . . Parts Self-Destructed . | . . . . Prevented . | . . . . Parts Restored . | . . . . Kills | -11 -10 -10 -10 ------- Run | Yrd Mat Min Exi Combat Hostiles Destroyed 6 | . . 5 1 Guns 6 | . . 5 1 Classes Destroyed 7 | 3 2 2 . Worker 2 | 2 . . . Builder 3 | . 3 . . Tunneler 3 | 3 . . . Recycler 1 | 1 . . . Watcher 1 | . 1 . . Swarmer 3 | . . 3 . Grunt 2 | . . 2 . Best Kill Streak 3 | 2 3 3 1 Combat Bots Only 3 | . . 3 1 Max Kills in Single Turn 2 | 1 2 1 1 Gunslinging . | . . . . Exploded . | . . . . Melee . | . . . . Uniques/NPCs Destroyed 2 | . . . 2 EX-BIN (-10/Exiles) 8R-AWN (-10/Exiles) Combat | -11 -10 -10 -10 -------- Run | Yrd Mat Min Exi Hostile Shots Fired 82 | . 7 54 21 Missed 24 | . 5 14 5 Hits 58 | . 2 40 16 Projectile 58 | . 2 40 16 AOE 3 | . . 3 . Critical Strikes 10 | . . 2 8 Damage Taken 881 | . 13 493 375 Core 279 | . 7 158 114 Absorbed by Shields . | . . . . Core Remaining (%) 100 | 100 . . . Volleys Fired 46 | 14 4 23 5 Largest 2 | 2 2 2 2 Hottest 40 | 40 40 40 40 Shots Fired 89 | 28 8 44 9 Gun 89 | 28 8 44 9 Cannon . | . . . . Launcher . | . . . . Special . | . . . . Kinetic 89 | 28 8 44 9 Thermal . | . . . . Explosive . | . . . . Electromagnetic . | . . . . Robot Hit Streak 10 | 10 4 5 5 Robot Miss Streak 4 | 2 1 4 4 Penetration Max . | . . . . Secondary Targets 3 | . . 3 . Max Gunslinging Chain 1 | . . 1 . Shots Hit Robots 50 | 17 5 22 6 Core Hits 21 | 7 4 8 2 Critical Kills . | . . . . Critical Parts Destroyed . | . . . . Critical Strikes . | . . . . Melee Attacks . | . . . . Impact . | . . . . Slashing . | . . . . Piercing . | . . . . Sneak Attacks . | . . . . Combat Hostiles . | . . . . Follow-up Attacks . | . . . . Damage Inflicted 643 | 205 79 282 77 Guns 643 | 205 79 282 77 Cannons . | . . . . Explosions . | . . . . Melee . | . . . . Ramming . | . . . . Kinetic 643 | 205 79 282 77 Thermal . | . . . . Explosive . | . . . . Electromagnetic . | . . . . Impact . | . . . . Slashing . | . . . . Piercing . | . . . . Highest Corruption . | . . . . Average Corruption . | . . . . Corruption Purged . | . . . . Corruption Blocked . | . . . . Overload Shots . | . . . . Overflow Damage . | . . . . Projectiles . | . . . . Explosions . | . . . . Melee . | . . . . Knockbacks . | . . . . Impact . | . . . . Kinetic . | . . . . Secondary . | . . . . Self-Inflicted Damage . | . . . . Shots . | . . . . Rammed . | . . . . Targets Rammed . | . . . . Kicked . | . . . . Crushed . | . . . . Highest Temperature 15 | . . 15 . Average Temperature 7 | . . 7 . Received Heat Transfer 99 | . . 99 . Siege Activations . | . . . . Martial Activations . | . . . . Shielding Activations . | . . . . Robots Disrupted . | . . . . Combat Hostiles . | . . . . Robots Corrupted . | . . . . Combat Hostiles . | . . . . Parts Fried . | . . . . Impact Corruptions . | . . . . Robots Melted . | . . . . Combat Hostiles . | . . . . Parts Melted . | . . . . Heat Transferred . | . . . . Parts Sabotaged . | . . . . Parts Stolen . | . . . . Parts Stripped . | . . . . Power Chain Reactions . | . . . . Alert | -11 -10 -10 -10 ------- Run | Yrd Mat Min Exi Maximum Alert Level . | . . . . Low Security (%) 100 | 100 100 100 . Level 1 . | . . . . Level 2 . | . . . . Level 3 . | . . . . Level 4 . | . . . . Level 5 . | . . . . High Security . | . . . . Max Security . | . . . . Peak Influence 60 | 10 15 60 . Initial 3 | . 3 . . Average 10 | 1 2 26 . Influence Increases 172 | 30 22 120 . Destroy 0b10 Robot/C 100 | . . 100 . Destroy 0b10 Robot/NC 50 | 30 20 . . Destroy Leader 22 | . 2 20 . Influence Decreases 172 | 25 27 110 10 Entered New Map 12 | . 2 . 10 Time Decay 140 | 25 25 90 . Lost Part 20 | . . 20 . Squads Dispatched 1 | . 1 . . Investigation . | . . . . Extermination . | . . . . Reinforcement 1 | . 1 . . Assault . | . . . . Garrison . | . . . . Intercept . | . . . . Searches Triggered . | . . . . Construction Impeded . | . . . . Haulers Reinforced . | . . . . Active Scanning Responses . | . . . . Cargo Convoy Interrupts . | . . . . Stealth | -11 -10 -10 -10 --------- Run | Yrd Mat Min Exi Distress Signals 1 | . 1 . . Communications Jammed . | . . . . Distress Signals . | . . . . Times Spotted 19 | . 5 6 8 Peak Tracking Total 9 | . 4 3 9 Tactical Retreats . | . . . . Traps | -11 -10 -10 -10 ------- Run | Yrd Mat Min Exi Traps Triggered . | . . . . Indirectly . | . . . . Trap Hack Attempts . | . . . . Triggered . | . . . . Disarmed . | . . . . Reprogrammed . | . . . . Reused . | . . . . Traps Extracted . | . . . . Installed . | . . . . Triggered . | . . . . Machines | -11 -10 -10 -10 ---------- Run | Yrd Mat Min Exi Machines Disabled 1 | . . . 1 Max in Single Turn . | . . . . Machines Repaired . | . . . . Machines Dismantled . | . . . . Machines Sabotaged . | . . . . Overloaded Fab Kills . | . . . . Hacking | -11 -10 -10 -10 --------- Run | Yrd Mat Min Exi Machines Accessed 2 | . . 1 1 Terminals . | . . . . Fabricators . | . . . . Repair Stations . | . . . . Recycling Units . | . . . . Scanalyzers . | . . . . Garrison Access . | . . . . Total Hacks 2 | . . 1 1 Successful 2 | . . 1 1 Failed . | . . . . Catastrophic . | . . . . Database Lockouts . | . . . . Manual 1 | . . . 1 Terminals . | . . . . Fabricators . | . . . . Repair Stations . | . . . . Recycling Units . | . . . . Scanalyzers . | . . . . Garrison Access . | . . . . Terminal Hacks 2 | . . 1 1 Open Door 1 | . . 1 . Proto ID Catalog 1 | . . . 1 Fabricator Hacks . | . . . . Repair Station Hacks . | . . . . Recycling Unit Hacks . | . . . . Scanalyzer . | . . . . Garrison Access Hacks . | . . . . Unauthorized Hacks . | . . . . Terminals . | . . . . Fabricators . | . . . . Repair Stations . | . . . . Recycling Units . | . . . . Scanalyzers . | . . . . Garrison Access . | . . . . Data Cores Recovered . | . . . . Used . | . . . . Hacking Detections . | . . . . Full Trace Events . | . . . . Feedback Events . | . . . . Feedback Blocked . | . . . . Robot Schematics Acquired . | . . . . Robots Built . | . . . . Authchips . | . . . . Time . | . . . . Total Robot Build Rating . | . . . . Part Schematics Acquired . | . . . . Parts Built . | . . . . Authchips . | . . . . Time . | . . . . Total Part Build Rating . | . . . . Part Studies Acquired . | . . . . Parts Repaired . | . . . . Time . | . . . . Parts Recycled . | . . . . Recycled Matter . | . . . . Retrieved Matter . | . . . . Retrieved Components . | . . . . Parts Scanalyzed . | . . . . Part Schematics Acquired . | . . . . Parts Damaged . | . . . . Bothacking | -11 -10 -10 -10 ------------ Run | Yrd Mat Min Exi Used RIF Installer . | . . . . Robots Hacked . | . . . . Non-combat . | . . . . Combat . | . . . . Robot Hacks Applied . | . . . . Relay Couplers Released . | . . . . Fabnet Peak Effective % . | . . . . Robots Rewired . | . . . . Allies Hacked . | . . . . Hacks Repelled . | . . . . Allies | -11 -10 -10 -10 -------- Run | Yrd Mat Min Exi Total Allies . | . . . . Largest Group . | . . . . Highest-Rated Group . | . . . . Highest-Rated Ally . | . . . . Total Orders 1 | . . . 1 RETURN 1 | . . . 1 Ally Attacks 19 | . . . 19 Total Damage 1044 | . . . 1044 Kills 7 | . . . 7 Allies Corrupted . | . . . . Allies Melted . | . . . . Turrets Deployed 3 | . . . 3 Intel | -11 -10 -10 -10 ------- Run | Yrd Mat Min Exi Active Infowar (turns) 317 | 42 194 81 . Structural 191 | . 110 81 . Seismic 126 | 42 84 . . Robot Analysis Total . | . . . . Derelict Logs Recovered . | . . . . Drone Launches 3 | . . . 3 Drone Recoveries 3 | . . . 3 Exploration | -11 -10 -10 -10 ------------- Run | Yrd Mat Min Exi Turns Passed 1125 | 139 194 192 600 Spaces Moved 782 | 72 145 94 471 Core 12 | 10 . . 2 Treads . | . . . . Legs 691 | 62 145 94 390 Wheels . | . . . . Hover 79 | . . . 79 Flight . | . . . . Fastest Speed 50 | 50 120 120 66 Average Speed 114 | 113 120 120 111 Slowest Speed 120 | 120 120 120 120 Overloaded Moves . | . . . . Propulsion Burnouts . | . . . . Robots Hopped . | . . . . Potential Cave-ins . | . . . . Cave-ins Triggered . | . . . . Exploration Rate (%) 26 | 4 28 28 46 Regions Visited 3 Branch Regions 2 Pre-discovered Areas . | . . . . Known Exits Taken . | . . . . Unknown Exits Taken 3 | 1 1 1 . Scrap Searched . | . . . . Spaces Dug . | . . . . Terrain Destroyed . | . . . . Melee . | . . . . Projectile . | . . . . AOE . | . . . . Terrain Rammed . | . . . . Walls Destroyed . | . . . . Machines Disabled . | . . . . Actions | -11 -10 -10 -10 --------- Run | Yrd Mat Min Exi Total 926 | 98 156 130 542 Wait 52 | 2 3 6 41 Move 779 | 71 144 93 471 Hop . | . . . . Pick Up 16 | 4 4 . 8 Fast Attach 10 | 7 . 1 2 Attach 2 | . . 1 1 Detach 1 | . . . 1 Swap 5 | . 1 3 1 Drop 15 | . . 3 12 Fire 46 | 14 4 23 5 Melee . | . . . . Ram . | . . . . Kick . | . . . . Crush . | . . . . Escape Stasis . | . . . . Rewire . | . . . . Trap . | . . . . Miscellaneous . | . . . . Route ------- -11/Scrapyard -10/Materials (discovered 2 exits: *Min / [Sub]) -10/Mines (discovered 2 exits: [*Mat] / *Exi) -10/Exiles History --------- Turn | Location | Event 8 | -11/Scrapyard | Discovered new exit (range 15) 140 | -11/Scrapyard | Entered Materials 302 | -10/Materials | Build established: Mutant 312 | -10/Materials | Discovered new exit (range 12) 313 | -10/Materials | Discovered new exit (range 13) 334 | -10/Materials | Entered Mines 335 | -10/Mines | Assembled infested the area 394 | -10/Mines | Core integrity fell below 50% 416 | -10/Mines | Found Prototype Device 416 | -10/Mines | Identified Thief Drone Bay 510 | -10/Mines | Discovered new exit (range 3) 521 | -10/Mines | Deemed a non-threat by the Exiles lab entrance 521 | -10/Mines | Discovered new exit (range 5) 526 | -10/Mines | Entered Exiles 555 | -10/Exiles | Met 8R-AWN 574 | -10/Exiles | Met EX-HEX 612 | -10/Exiles | Met EX-BIN 681 | -10/Exiles | Aligned with FarCom system 682 | -10/Exiles | Given EX-Vault access code 712 | -10/Exiles | Opened EX-Vault 744 | -10/Exiles | Warned to stay clear of 0b10 Research branches 781 | -10/Exiles | Found Deploy-a-Sentry 791 | -10/Exiles | Found Deploy-a-Sentry 802 | -10/Exiles | Found Deploy-a-Sentry 810 | -10/Exiles | DAS Turret deployed 814 | -10/Exiles | Found Lightpack 2.0 830 | -10/Exiles | Found Trap Reconfigurator 912 | -10/Exiles | DAS Turret deployed 968 | -10/Exiles | DAS Turret deployed 973 | -10/Exiles | Attacked by the Exiles 973 | -10/Exiles | Allies destroyed EX-BIN 979 | -10/Exiles | Found Prototype Device 980 | -10/Exiles | Identified System Purifier 1092 | -10/Exiles | Core integrity fell below 20% 1092 | -10/Exiles | Destroyed 8R-AWN 1126 | -10/Exiles | Destroyed by DAS Turret with DAS Cannon Last Messages --------------- 01067_ DAS Turret suffers critical hit (Destroy). 01067_ DAS Turret destroyed. 01080_ Penetrated by HV Slug. 01084_ HV Slug penetrates EX-Prototypes Database. 01087_ Penetrated by HV Slug. 01087_ HV Slug penetrates EX-Vault Access. 01087_ EX-Vault Access disabled. 01089_ Penetrated by HV Slug. 01089_ HV Slug penetrates EX-Prototypes Database. 01091_ Penetrated by HV Slug. 01091_ Critical hit (Destroy). 01091_ Assault Rifle destroyed. 01091_ Penetrated by HV Slug. 01092_ 8R-AWN destroyed. 01094_ Acquired 46 matter. 01124_ Mak. Hover Unit destroyed. 01124_ Assault Rifle destroyed. Map ----- +----------------------------------------------------+ | ???????????????????????#""""""?# #?#########?? | | ???????????????????????##"###??# #?#"""""""#?? | | ???????????????????????????????# #?# """"""#?? | | ???????????????????????????????# #?# """""#?? | | ??????????????????????????????## ##" " """"#?? | | ??????????????????????????????#" """"#?? | | ??????????????????????????????#" % !!"""#?? | | ??????????????????????????????#" % !!"""#?? | | ??????????????????????????????#" % ! %"""#?? | | ??????????????????????????????#" !!"""#?? | | ??????????????????????????????#" !"""## | | ??????????????????????????????## """""" | | ???????????????????????????????# """### | | ???????????????????????????????#" "X" """"" | | ???????????????????????????????#" """ # " | | ???????????????????????????????# """""""""#?? | | ??????????????????????????????##" % ###########?? | | ?????????????????????????????##"" %% #???????????? | | ???????????????#?# ##??######"" % %#???????????? | | ????????????####X# #"###""""""" %%##??????????? | | ???????????? """""" " "" ##???####### | | ??????????? "" """ " #####"""""" | | ??????????? " " " """ | | ?????????? a % "" | | ?????????? " | | ?????????? @ % | | ?????????? | | ??????????" | | ???????????"" " """" | | ??????????? ######""" | | ???????????? ""##????#####""" | | ???????????? """##?????????##""" | | ???????????? """##???????????#"""" | | ????????????? ""?????????????#"" | | ????????????? #??????????????""" | | ?????????????? ???????????????? | | ?????????????? ????????????????? | | ???????????????? ?????????????????? | | ?????????????????? ?????????????????? | | ????????????????????????????????????? " | | ??????????????????????????????????????? """ | | ???????????????????????????????????????? " " ""#" | | ?????????????????????????????????????????""" "??## | | ???????????????????????????????????????????""????# | | ?????????????????????????????????????????????????? | | ?????????????????????????????????????????????????? | | ?????????????????????????????????????????????????? | | ?????????????????????????????????????????????????? | | ?????????????????????????????????????????????????? | | ?????????????????????????????????????????????????? | +----------------------------------------------------+ Best States ------------- Heat Dissipation 25 Energy Generation 10 Energy Capacity 125 Matter Stores 300 Matter Capacity 300 Sight Range 16 Terrain Scan Density 10 Evasion (%) 55 Item Schematics ----------------- None Robot Schematics ------------------ None Fabricated ------------ Nothing Repaired ---------- Nothing Studied --------- None Alien Tech Used ----------------- None Achievements -------------- None Challenges ------------ None Game ------ Seed DrainedCooledMegashotty Manual? 0 Play Time 00:11:15 Cumulative 179.9 hours Start 2026.04.30 @ 03:00:47 End 2026.04.30 @ 03:11:52 Sessions 1 Manual Loads 0 Difficulty Rogue Special Mode None Game No. 256 Rogue 256 Adventurer 0 Explorer 0 Win Type - Total 2 Types 1/0/0/1/0/0/0/0/0/0 Lore% 72 Gallery% 60 Achievement% 46 Wizard Run 0 Options --------- Layout 2 ASCII 0 Keyboard 0 Movement Mouse Keybinds 0 Fullscreen 1 Font 16/SmallcapsGlow Map View 50x49 Zoom Use 0% Tactical HUD 1 Map Filters NONE Filters NONE Steam SD RUN: 1cc93d87-6912-4307-a2af-171fc374b2c6